[Event "Live Chess"]
[Site "Chess.com"]
[Date "2023.05.21"]
[Round "-"]
[White "Biranidun"]
[Black "Tushinskiy"]
[Result "1-0"]
[WhiteElo "2524"]
[BlackElo "2213"]
[TimeControl "300"]
[EndTime "20:39:06 PDT"]
[Termination "Biranidun won by checkmate"]

1. e4 {[%clk 0:04:58.8]} 1... e5 {[%clk 0:04:53.9]} 2. Nf3 {[%clk 0:04:57.9]}
2... d6 {[%clk 0:04:53.3]} 3. d4 {[%clk 0:04:57.4]} 3... Bg4 {[%clk 0:04:52.5]}
4. dxe5 {[%clk 0:04:54.7]} 4... Nd7 {[%clk 0:04:51.2]} 5. h3 {[%clk 0:04:46.1]}
5... Bh5 {[%clk 0:04:49]} 6. exd6 {[%clk 0:04:13.7]} 6... Bxd6 {[%clk
0:04:48.9]} 7. Bd3 {[%clk 0:04:10.9]} 7... Qe7 {[%clk 0:04:47.6]} 8. O-O {[%clk
0:04:03.7]} 8... O-O-O {[%clk 0:04:46.2]} 9. Be3 {[%clk 0:03:52.1]} 9... Ngf6
{[%clk 0:04:44.1]} 10. Nbd2 {[%clk 0:03:45.9]} 10... h6 {[%clk 0:04:42]} 11. Re1
{[%clk 0:03:42.3]} 11... Ne5 {[%clk 0:04:39.5]} 12. Be2 {[%clk 0:03:40.1]} 12...
g5 {[%clk 0:04:35.5]} 13. Nd4 {[%clk 0:03:37.1]} 13... Bg6 {[%clk 0:04:33]} 14.
c3 {[%clk 0:03:26.9]} 14... g4 {[%clk 0:04:27.3]} 15. hxg4 {[%clk 0:03:25.3]}
15... h5 {[%clk 0:04:19.7]} 16. g5 {[%clk 0:03:16.3]} 16... Nfg4 {[%clk
0:04:17.4]} 17. Bf4 {[%clk 0:02:54.4]} 17... Bc5 {[%clk 0:04:12.2]} 18. Qa4
{[%clk 0:02:36]} 18... Kb8 {[%clk 0:03:59]} 19. N2b3 {[%clk 0:02:34.2]} 19...
Bb6 {[%clk 0:03:57.5]} 20. Rad1 {[%clk 0:02:31.4]} 20... f6 {[%clk 0:03:45.9]}
21. Qa3 {[%clk 0:02:17.2]} 21... Qf7 {[%clk 0:03:35.9]} 22. f3 {[%clk
0:01:52.1]} 22... fxg5 {[%clk 0:03:00.4]} 23. Bxg5 {[%clk 0:01:52]} 23... Rdg8
{[%clk 0:02:57.4]} 24. fxg4 {[%clk 0:01:24.3]} 24... Bxe4 {[%clk 0:02:49]} 25.
Qe7 {[%clk 0:01:21.5]} 25... Qg6 {[%clk 0:02:07.4]} 26. Qxe5 {[%clk 0:01:18.9]}
26... hxg4 {[%clk 0:02:06.2]} 27. Bxg4 {[%clk 0:01:14.4]} 27... Bc2 {[%clk
0:01:53.5]} 28. Rd2 {[%clk 0:01:06.9]} 28... Bxb3 {[%clk 0:01:52.7]} 29. axb3
{[%clk 0:01:05.4]} 29... Qh7 {[%clk 0:01:44.4]} 30. Bh3 {[%clk 0:01:04.4]} 30...
a6 {[%clk 0:01:38.9]} 31. b4 {[%clk 0:01:01.3]} 31... Qh5 {[%clk 0:01:32]} 32.
Bf6 {[%clk 0:00:35.4]} 32... Qxh3 {[%clk 0:01:14.7]} 33. Bxh8 {[%clk 0:00:34.5]}
33... Qh6 {[%clk 0:01:01.8]} 34. Rde2 {[%clk 0:00:22.3]} 34... Rxh8 {[%clk
0:01:00.1]} 35. Qxh8+ {[%clk 0:00:21.5]} 35... Qxh8 {[%clk 0:00:57.9]} 36. Re8+
{[%clk 0:00:21.2]} 36... Qxe8 {[%clk 0:00:56.9]} 37. Rxe8+ {[%clk 0:00:21.1]}
37... Ka7 {[%clk 0:00:55.7]} 38. g4 {[%clk 0:00:21]} 38... a5 {[%clk 0:00:55.1]}
39. bxa5 {[%clk 0:00:18.5]} 39... Bxa5 {[%clk 0:00:54.3]} 40. g5 {[%clk
0:00:18.2]} 40... c5 {[%clk 0:00:52.1]} 41. g6 {[%clk 0:00:17.9]} 41... cxd4
{[%clk 0:00:51.1]} 42. g7 {[%clk 0:00:17.6]} 42... Bb6 {[%clk 0:00:46.2]} 43.
g8=Q {[%clk 0:00:15.4]} 43... dxc3+ {[%clk 0:00:44.2]} 44. Kg2 {[%clk
0:00:14.9]} 44... Bc5 {[%clk 0:00:41.5]} 45. bxc3 {[%clk 0:00:12.6]} 45... Kb6
{[%clk 0:00:40.5]} 46. Qd5 {[%clk 0:00:12.5]} 46... Kb5 {[%clk 0:00:39.1]} 47.
c4+ {[%clk 0:00:12.4]} 47... Kb4 {[%clk 0:00:38.2]} 48. Rb8 {[%clk 0:00:11.3]}
48... b6 {[%clk 0:00:37.4]} 49. Rb7 {[%clk 0:00:10.7]} 49... Kc3 {[%clk
0:00:36]} 50. Kf3 {[%clk 0:00:10.6]} 50... Kb4 {[%clk 0:00:34.4]} 51. Ke4 {[%clk
0:00:10.5]} 51... Kc3 {[%clk 0:00:33.6]} 52. Qd3+ {[%clk 0:00:09.3]} 52... Kb4
{[%clk 0:00:32.7]} 53. Kd5 {[%clk 0:00:08.6]} 53... Bg1 {[%clk 0:00:28.1]} 54.
Qb1+ {[%clk 0:00:07.6]} 54... Kc3 {[%clk 0:00:27.1]} 55. Qxg1 {[%clk 0:00:07.5]}
55... b5 {[%clk 0:00:25.2]} 56. cxb5 {[%clk 0:00:05.9]} 56... Kb4 {[%clk
0:00:23.9]} 57. b6 {[%clk 0:00:04.8]} 57... Kb5 {[%clk 0:00:23.1]} 58. Rc7
{[%clk 0:00:04.7]} 58... Ka6 {[%clk 0:00:22.3]} 59. b7 {[%clk 0:00:04]} 59...
Ka5 {[%clk 0:00:20.3]} 60. b8=Q {[%clk 0:00:03.8]} 60... Ka4 {[%clk 0:00:19.5]}
61. Qa1# {[%clk 0:00:03.6]} 1-0

[Event "Live Chess"]
[Site "Chess.com"]
[Date "2023.05.21"]
[Round "-"]
[White "ramses-IIG"]
[Black "yarek"]
[Result "0-1"]
[WhiteElo "870"]
[BlackElo "1883"]
[TimeControl "300"]
[EndTime "20:39:37 PDT"]
[Termination "yarek won by resignation"]

1. e4 {[%clk 0:04:53.2]} 1... g6 {[%clk 0:04:59.9]} 2. Nf3 {[%clk 0:04:52.5]}
2... Bg7 {[%clk 0:04:56.9]} 3. Bc4 {[%clk 0:04:51.3]} 3... c6 {[%clk 0:04:54.8]}
4. Ng5 {[%clk 0:04:48.7]} 4... d5 {[%clk 0:04:51.8]} 5. exd5 {[%clk 0:04:45.1]}
5... cxd5 {[%clk 0:04:51.7]} 6. Bb3 {[%clk 0:04:43.1]} 6... e5 {[%clk
0:04:37.5]} 7. d3 {[%clk 0:04:41.1]} 7... Nf6 {[%clk 0:04:32]} 8. Nf3 {[%clk
0:04:36.4]} 8... Bg4 {[%clk 0:04:25.6]} 9. h3 {[%clk 0:04:33.3]} 9... Bxf3
{[%clk 0:04:23]} 10. Qxf3 {[%clk 0:04:33.2]} 10... O-O {[%clk 0:04:11.9]} 11.
Bg5 {[%clk 0:04:28.9]} 11... Nc6 {[%clk 0:04:07.1]} 12. Bxf6 {[%clk 0:04:24.7]}
12... Bxf6 {[%clk 0:03:59.6]} 13. Bxd5 {[%clk 0:04:22.8]} 13... Nd4 {[%clk
0:03:51.2]} 14. Bxf7+ {[%clk 0:03:52.8]} 14... Rxf7 {[%clk 0:03:47.2]} 15. Qd1
{[%clk 0:03:52.7]} 15... Rc8 {[%clk 0:03:33.6]} 16. c3 {[%clk 0:03:51.4]} 16...
Nf5 {[%clk 0:03:24.9]} 17. g4 {[%clk 0:03:44.7]} 17... Nh4 {[%clk 0:03:17.2]}
18. Qc1 {[%clk 0:03:36.4]} 18... Ng2+ {[%clk 0:03:09.2]} 19. Kf1 {[%clk
0:03:34.1]} 19... Nf4 {[%clk 0:03:07.3]} 20. Nd2 {[%clk 0:03:28]} 20... Bh4
{[%clk 0:02:59.1]} 21. Nf3 {[%clk 0:03:25.7]} 21... Nxd3 {[%clk 0:02:51.5]} 22.
Qh6 {[%clk 0:03:21.8]} 22... Rxf3 {[%clk 0:02:44.7]} 23. Qxh4 {[%clk 0:03:19.6]}
23... Qxh4 {[%clk 0:02:41.5]} 0-1

[Event "Live Chess"]
[Site "Chess.com"]
[Date "2023.05.21"]
[Round "-"]
[White "garyjc"]
[Black "Conradical12"]
[Result "0-1"]
[WhiteElo "1041"]
[BlackElo "1634"]
[TimeControl "300"]
[EndTime "20:41:41 PDT"]
[Termination "Conradical12 won by resignation"]

1. e4 {[%clk 0:04:53]} 1... e5 {[%clk 0:04:59.4]} 2. Nf3 {[%clk 0:04:49.3]} 2...
Nc6 {[%clk 0:04:58.9]} 3. d4 {[%clk 0:04:47.6]} 3... Nf6 {[%clk 0:04:58.4]} 4.
d5 {[%clk 0:04:43.7]} 4... Ne7 {[%clk 0:04:54.9]} 5. Nxe5 {[%clk 0:04:40.5]}
5... d6 {[%clk 0:04:54.5]} 6. Nf3 {[%clk 0:04:20.6]} 6... Nxe4 {[%clk
0:04:52.4]} 7. Qe2 {[%clk 0:04:16.8]} 7... Nf6 {[%clk 0:04:50.1]} 8. Nc3 {[%clk
0:04:08.5]} 8... g6 {[%clk 0:04:47.5]} 9. Ne4 {[%clk 0:04:04.1]} 9... Nfxd5
{[%clk 0:04:42.9]} 10. Be3 {[%clk 0:03:49.6]} 10... Bg7 {[%clk 0:04:36.5]} 11.
g3 {[%clk 0:03:37.8]} 11... O-O {[%clk 0:04:27.7]} 12. c3 {[%clk 0:03:34.3]}
12... Nf5 {[%clk 0:04:24.9]} 13. Bg2 {[%clk 0:03:29.7]} 13... Re8 {[%clk
0:04:21.9]} 14. Bg5 {[%clk 0:03:04.7]} 14... f6 {[%clk 0:04:15.8]} 15. Bd2
{[%clk 0:02:43.8]} 15... Qe7 {[%clk 0:03:48.4]} 16. O-O-O {[%clk 0:02:32.8]}
16... c6 {[%clk 0:03:34.3]} 17. Qd3 {[%clk 0:02:28.8]} 17... Qxe4 {[%clk
0:03:28.8]} 18. Qxe4 {[%clk 0:02:16.7]} 18... Rxe4 {[%clk 0:03:26.5]} 19. Nd4
{[%clk 0:02:14]} 19... Re8 {[%clk 0:03:09.2]} 20. Nxf5 {[%clk 0:02:05.7]} 20...
Bxf5 {[%clk 0:03:06.8]} 21. Bxd5+ {[%clk 0:01:54.4]} 21... cxd5 {[%clk 0:03:03]}
22. Bf4 {[%clk 0:01:51.2]} 22... Re2 {[%clk 0:02:55.1]} 23. Bxd6 {[%clk
0:01:26.2]} 23... Rc2+ {[%clk 0:02:41.1]} 24. Kb1 {[%clk 0:01:18.5]} 24... Rd8
{[%clk 0:02:36.5]} 25. Bf4 {[%clk 0:01:09]} 25... Rxf2+ {[%clk 0:02:24.1]} 26.
Ka1 {[%clk 0:01:03.6]} 26... Re8 {[%clk 0:02:21.7]} 27. Rxd5 {[%clk 0:00:49.8]}
27... Be4 {[%clk 0:02:03.8]} 28. Rd6 {[%clk 0:00:41.2]} 28... Bxh1 {[%clk
0:01:59.9]} 0-1

[Event "Live Chess"]
[Site "Chess.com"]
[Date "2023.05.21"]
[Round "-"]
[White "manthanit"]
[Black "LiamBellwood"]
[Result "0-1"]
[WhiteElo "1082"]
[BlackElo "2006"]
[TimeControl "300"]
[EndTime "20:42:16 PDT"]
[Termination "LiamBellwood won by resignation"]

1. e4 {[%clk 0:04:55.8]} 1... e6 {[%clk 0:04:59.9]} 2. Nf3 {[%clk 0:04:54.5]}
2... d5 {[%clk 0:04:59.8]} 3. exd5 {[%clk 0:04:53.8]} 3... exd5 {[%clk
0:04:59.7]} 4. d4 {[%clk 0:04:53.4]} 4... Bd6 {[%clk 0:04:59.2]} 5. Nc3 {[%clk
0:04:52.9]} 5... Ne7 {[%clk 0:04:58.9]} 6. h3 {[%clk 0:04:51.9]} 6... c6 {[%clk
0:04:58.4]} 7. Bd3 {[%clk 0:04:50.6]} 7... O-O {[%clk 0:04:56.4]} 8. O-O {[%clk
0:04:49]} 8... Bf5 {[%clk 0:04:55.2]} 9. Bxf5 {[%clk 0:04:47.7]} 9... Nxf5
{[%clk 0:04:55.1]} 10. Bg5 {[%clk 0:04:44.9]} 10... f6 {[%clk 0:04:54.3]} 11.
Bh4 {[%clk 0:04:43.7]} 11... Nxh4 {[%clk 0:04:49.6]} 12. Nxh4 {[%clk 0:04:42.8]}
12... Na6 {[%clk 0:04:47.3]} 13. Nf3 {[%clk 0:04:42]} 13... Nc7 {[%clk
0:04:46.6]} 14. a3 {[%clk 0:04:39]} 14... Qd7 {[%clk 0:04:46.1]} 15. Re1 {[%clk
0:04:35.8]} 15... Rfe8 {[%clk 0:04:45.7]} 16. Qd2 {[%clk 0:04:35.3]} 16... Ne6
{[%clk 0:04:38.9]} 17. Ne2 {[%clk 0:04:28.5]} 17... Qc7 {[%clk 0:04:35.7]} 18.
b4 {[%clk 0:04:21.6]} 18... a5 {[%clk 0:04:32]} 19. bxa5 {[%clk 0:04:15.3]}
19... Qxa5 {[%clk 0:04:28.7]} 20. Qxa5 {[%clk 0:04:11.9]} 20... Rxa5 {[%clk
0:04:28.6]} 21. Ng3 {[%clk 0:03:57.3]} 21... Bxg3 {[%clk 0:04:27.6]} 22. fxg3
{[%clk 0:03:55.3]} 22... Kf7 {[%clk 0:04:27.5]} 23. Re3 {[%clk 0:03:54.4]} 23...
Ng5 {[%clk 0:04:22.7]} 24. Nxg5+ {[%clk 0:03:52]} 24... fxg5 {[%clk 0:04:22.6]}
25. Kf2 {[%clk 0:03:51.3]} 25... Rxe3 {[%clk 0:04:14]} 26. Kxe3 {[%clk
0:03:49.9]} 26... Ra4 {[%clk 0:04:12.8]} 27. c3 {[%clk 0:03:45.7]} 27... Kf6
{[%clk 0:04:08.9]} 28. g4 {[%clk 0:03:45]} 28... b5 {[%clk 0:04:04.3]} 29. Kd3
{[%clk 0:03:37.6]} 29... Ra7 {[%clk 0:04:00.3]} 30. Rf1+ {[%clk 0:03:34.1]}
30... Kg6 {[%clk 0:03:55.9]} 31. Ra1 {[%clk 0:03:27.9]} 31... h5 {[%clk
0:03:36.9]} 32. gxh5+ {[%clk 0:03:26.2]} 32... Kxh5 {[%clk 0:03:36.8]} 33. Ke3
{[%clk 0:03:19.4]} 33... g4 {[%clk 0:03:34.3]} 34. hxg4+ {[%clk 0:03:17.8]}
34... Kxg4 {[%clk 0:03:34.2]} 35. Kf2 {[%clk 0:03:16.9]} 35... Ra4 {[%clk
0:03:31.4]} 36. Ra2 {[%clk 0:03:13.4]} 36... Rc4 {[%clk 0:03:29.7]} 37. Rc2
{[%clk 0:03:11.1]} 37... Ra4 {[%clk 0:03:28.8]} 38. Ra2 {[%clk 0:03:09.8]} 38...
Kf4 {[%clk 0:03:28.4]} 39. g3+ {[%clk 0:03:08]} 39... Ke4 {[%clk 0:03:27.8]} 40.
Ke2 {[%clk 0:03:06.6]} 40... g5 {[%clk 0:03:21.3]} 41. Kd2 {[%clk 0:02:36.5]}
41... Kf3 {[%clk 0:03:14.7]} 42. Ke1 {[%clk 0:02:33.3]} 42... Kxg3 {[%clk
0:03:12.5]} 43. Kf1 {[%clk 0:02:32.6]} 43... Kf4 {[%clk 0:03:09.7]} 44. Kf2
{[%clk 0:02:29]} 44... Ke4 {[%clk 0:03:08.2]} 45. Ke2 {[%clk 0:02:28]} 45... g4
{[%clk 0:03:07]} 46. Kf2 {[%clk 0:02:15]} 46... Kd3 {[%clk 0:03:05.1]} 47. Kg3
{[%clk 0:02:12.1]} 47... Kxc3 {[%clk 0:03:03.6]} 48. Kxg4 {[%clk 0:02:11.6]}
48... b4 {[%clk 0:03:02.5]} 49. Ra1 {[%clk 0:02:08.6]} 49... Rxa3 {[%clk
0:03:01.2]} 50. Rc1+ {[%clk 0:02:06.8]} 50... Kxd4 {[%clk 0:03:00.7]} 51. Rxc6
{[%clk 0:02:06]} 51... b3 {[%clk 0:02:58.8]} 52. Kf3 {[%clk 0:02:01]} 52... b2+
{[%clk 0:02:55.2]} 53. Ke2 {[%clk 0:02:00.3]} 53... b1=Q {[%clk 0:02:54.5]} 0-1

[Event "Live Chess"]
[Site "Chess.com"]
[Date "2023.05.21"]
[Round "-"]
[White "ramses-IIG"]
[Black "Biranidun"]
[Result "0-1"]
[WhiteElo "870"]
[BlackElo "2524"]
[TimeControl "300"]
[EndTime "20:42:27 PDT"]
[Termination "Biranidun won by checkmate"]

1. e4 {[%clk 0:04:58.9]} 1... c5 {[%clk 0:04:59]} 2. Nf3 {[%clk 0:04:58.8]} 2...
d6 {[%clk 0:04:58.2]} 3. Bc4 {[%clk 0:04:56.8]} 3... Nf6 {[%clk 0:04:57.6]} 4.
d3 {[%clk 0:04:54.5]} 4... Nc6 {[%clk 0:04:56.5]} 5. Ng5 {[%clk 0:04:53.4]} 5...
e6 {[%clk 0:04:55.7]} 6. c3 {[%clk 0:04:50.1]} 6... Be7 {[%clk 0:04:55.2]} 7.
O-O {[%clk 0:04:48]} 7... O-O {[%clk 0:04:54]} 8. Nf3 {[%clk 0:04:45.1]} 8... d5
{[%clk 0:04:53.3]} 9. exd5 {[%clk 0:04:42.6]} 9... exd5 {[%clk 0:04:53.2]} 10.
Bb3 {[%clk 0:04:41.3]} 10... Bg4 {[%clk 0:04:52.4]} 11. Bg5 {[%clk 0:04:39.7]}
11... h6 {[%clk 0:04:51.3]} 12. Bxf6 {[%clk 0:04:37.6]} 12... Bxf6 {[%clk
0:04:51.2]} 13. h3 {[%clk 0:04:35.5]} 13... Bh5 {[%clk 0:04:50]} 14. Nbd2 {[%clk
0:04:29.8]} 14... Re8 {[%clk 0:04:48.9]} 15. Re1 {[%clk 0:04:26.6]} 15... Qd6
{[%clk 0:04:47.2]} 16. Rxe8+ {[%clk 0:04:24.3]} 16... Rxe8 {[%clk 0:04:47.1]}
17. Ba4 {[%clk 0:04:16.9]} 17... a6 {[%clk 0:04:44]} 18. Bxc6 {[%clk 0:04:15.4]}
18... Qxc6 {[%clk 0:04:43.9]} 19. Qb3 {[%clk 0:04:13.2]} 19... b5 {[%clk
0:04:42.4]} 20. Re1 {[%clk 0:04:05.9]} 20... Rxe1+ {[%clk 0:04:39.4]} 21. Nxe1
{[%clk 0:04:05.8]} 21... Qe6 {[%clk 0:04:38]} 22. Nef3 {[%clk 0:04:04.1]} 22...
Qe2 {[%clk 0:04:36]} 23. Nf1 {[%clk 0:03:53.8]} 23... Bxf3 {[%clk 0:04:33.1]}
24. gxf3 {[%clk 0:03:52.3]} 24... Qxd3 {[%clk 0:04:29.4]} 25. f4 {[%clk
0:03:47.4]} 25... c4 {[%clk 0:04:27.7]} 26. Qb4 {[%clk 0:03:44.5]} 26... Qxh3
{[%clk 0:04:26.7]} 27. Qd6 {[%clk 0:03:34.5]} 27... Qg4+ {[%clk 0:04:25.2]} 28.
Ng3 {[%clk 0:03:29.7]} 28... h5 {[%clk 0:04:24.4]} 29. Kf1 {[%clk 0:03:21]}
29... h4 {[%clk 0:04:21.9]} 30. Ne2 {[%clk 0:03:13.6]} 30... h3 {[%clk 0:04:15]}
31. Ng3 {[%clk 0:03:07.6]} 31... Qd1# {[%clk 0:04:14.1]} 0-1

[Event "Live Chess"]
[Site "Chess.com"]
[Date "2023.05.21"]
[Round "-"]
[White "Doge_Dandolo"]
[Black "alanmike75"]
[Result "1-0"]
[WhiteElo "1917"]
[BlackElo "1600"]
[TimeControl "300"]
[EndTime "20:42:28 PDT"]
[Termination "Doge_Dandolo won by resignation"]

1. Nf3 {[%clk 0:04:57.2]} 1... d5 {[%clk 0:04:57.5]} 2. c4 {[%clk 0:04:45.2]}
2... e6 {[%clk 0:04:50.4]} 3. g3 {[%clk 0:04:38.1]} 3... Nf6 {[%clk 0:04:48.5]}
4. Bg2 {[%clk 0:04:37]} 4... Be7 {[%clk 0:04:45.3]} 5. O-O {[%clk 0:04:35.1]}
5... O-O {[%clk 0:04:44.1]} 6. d4 {[%clk 0:04:33.8]} 6... dxc4 {[%clk 0:04:40]}
7. Qc2 {[%clk 0:04:31.4]} 7... c5 {[%clk 0:04:29.8]} 8. Qxc4 {[%clk 0:04:27.8]}
8... cxd4 {[%clk 0:04:26.7]} 9. Nxd4 {[%clk 0:04:25.3]} 9... Nd5 {[%clk
0:04:16.1]} 10. Nc3 {[%clk 0:04:22.2]} 10... Nxc3 {[%clk 0:03:56.7]} 11. Qxc3
{[%clk 0:04:17.8]} 11... Nc6 {[%clk 0:03:35.1]} 12. Nxc6 {[%clk 0:04:14.4]}
12... bxc6 {[%clk 0:03:33.7]} 13. Bxc6 {[%clk 0:04:09.1]} 13... Rb8 {[%clk
0:03:32.5]} 14. Bf4 {[%clk 0:04:06.5]} 14... Rb6 {[%clk 0:03:30.4]} 15. Bf3
{[%clk 0:03:56.9]} 15... Bb4 {[%clk 0:03:06.2]} 16. Qc2 {[%clk 0:03:51.2]} 16...
Bd6 {[%clk 0:02:53]} 17. Rfd1 {[%clk 0:03:48]} 17... Qc7 {[%clk 0:02:50.9]} 18.
Qxc7 {[%clk 0:03:45.3]} 1-0

[Event "Live Chess"]
[Site "Chess.com"]
[Date "2023.05.21"]
[Round "-"]
[White "ViktorTheCoolBoy"]
[Black "raminguy"]
[Result "1-0"]
[WhiteElo "2503"]
[BlackElo "1950"]
[TimeControl "300"]
[EndTime "20:43:07 PDT"]
[Termination "ViktorTheCoolBoy won by resignation"]

1. e4 {[%clk 0:04:58.3]} 1... e5 {[%clk 0:04:57.3]} 2. Nf3 {[%clk 0:04:56.8]}
2... Nc6 {[%clk 0:04:56.3]} 3. Bc4 {[%clk 0:04:55.9]} 3... Bc5 {[%clk
0:04:55.2]} 4. O-O {[%clk 0:04:54.4]} 4... Nf6 {[%clk 0:04:54.6]} 5. d3 {[%clk
0:04:53.8]} 5... O-O {[%clk 0:04:53.9]} 6. c3 {[%clk 0:04:53.1]} 6... h6 {[%clk
0:04:53.2]} 7. b4 {[%clk 0:04:49.3]} 7... Be7 {[%clk 0:04:52.2]} 8. a4 {[%clk
0:04:47.7]} 8... a6 {[%clk 0:04:50.5]} 9. h3 {[%clk 0:04:43.7]} 9... d6 {[%clk
0:04:48.2]} 10. Be3 {[%clk 0:04:42.1]} 10... d5 {[%clk 0:04:41.4]} 11. exd5
{[%clk 0:04:39.9]} 11... Nxd5 {[%clk 0:04:40.4]} 12. Bd2 {[%clk 0:04:39.4]}
12... Be6 {[%clk 0:04:32.1]} 13. Re1 {[%clk 0:04:37.4]} 13... Bf6 {[%clk
0:04:20.1]} 14. Qc2 {[%clk 0:04:29]} 14... Re8 {[%clk 0:04:16.5]} 15. Bc1 {[%clk
0:04:23.2]} 15... Nb6 {[%clk 0:04:00.2]} 16. Bxe6 {[%clk 0:04:19]} 16... Rxe6
{[%clk 0:03:58.5]} 17. Nbd2 {[%clk 0:04:18]} 17... Nd5 {[%clk 0:03:48.7]} 18.
Ne4 {[%clk 0:04:16.2]} 18... Be7 {[%clk 0:03:46.5]} 19. Ng3 {[%clk 0:04:13.8]}
19... Bf8 {[%clk 0:03:39.1]} 20. Bd2 {[%clk 0:04:11.3]} 20... f6 {[%clk
0:03:34]} 21. b5 {[%clk 0:04:08.2]} 21... axb5 {[%clk 0:03:31.1]} 22. axb5
{[%clk 0:04:08.1]} 22... Rxa1 {[%clk 0:03:29.4]} 23. Rxa1 {[%clk 0:04:06.8]}
23... Nce7 {[%clk 0:03:21.7]} 24. Qb3 {[%clk 0:04:04.9]} 24... Kh8 {[%clk
0:03:17.5]} 25. c4 {[%clk 0:04:01.5]} 25... Nf4 {[%clk 0:03:15.1]} 26. d4 {[%clk
0:04:00.2]} 26... Rd6 {[%clk 0:03:07.4]} 27. d5 {[%clk 0:03:57.3]} 27... b6
{[%clk 0:02:59.2]} 28. Ne4 {[%clk 0:03:54.9]} 28... Rd7 {[%clk 0:02:54.3]} 29.
Bxf4 {[%clk 0:03:50.4]} 29... exf4 {[%clk 0:02:52.9]} 30. Nd4 {[%clk 0:03:49.8]}
30... Ng6 {[%clk 0:02:36.5]} 31. Ne6 {[%clk 0:03:47.9]} 31... Qe7 {[%clk
0:02:27.8]} 32. Ra8 {[%clk 0:03:46.3]} 32... Kh7 {[%clk 0:02:24.1]} 33. Qd3
{[%clk 0:03:43.3]} 33... Qxe6 {[%clk 0:02:16.9]} 34. dxe6 {[%clk 0:03:39.2]}
34... Rxd3 {[%clk 0:02:15.9]} 35. Rxf8 {[%clk 0:03:37.7]} 35... Rd1+ {[%clk
0:02:00.4]} 36. Kh2 {[%clk 0:03:36]} 36... Re1 {[%clk 0:01:59.5]} 37. f3 {[%clk
0:03:35]} 37... Rc1 {[%clk 0:01:53.9]} 38. Rf7 {[%clk 0:03:30.4]} 38... f5
{[%clk 0:01:50.2]} 39. Nf6+ {[%clk 0:03:17]} 39... Kh8 {[%clk 0:01:46.5]} 40. e7
{[%clk 0:03:16.2]} 40... Nxe7 {[%clk 0:01:43.1]} 41. Rf8+ {[%clk 0:03:14.2]} 1-0

[Event "Live Chess"]
[Site "Chess.com"]
[Date "2023.05.21"]
[Round "-"]
[White "smoggyrabbit"]
[Black "LutherSullivan"]
[Result "0-1"]
[WhiteElo "1755"]
[BlackElo "2207"]
[TimeControl "300"]
[EndTime "20:44:11 PDT"]
[Termination "LutherSullivan won by resignation"]

1. d4 {[%clk 0:04:58.5]} 1... Nf6 {[%clk 0:04:56.8]} 2. Nf3 {[%clk 0:04:56.8]}
2... g6 {[%clk 0:04:56.3]} 3. e3 {[%clk 0:04:53]} 3... Bg7 {[%clk 0:04:55.7]} 4.
Be2 {[%clk 0:04:52.2]} 4... O-O {[%clk 0:04:55.3]} 5. O-O {[%clk 0:04:51.3]}
5... d5 {[%clk 0:04:54.8]} 6. b4 {[%clk 0:04:50.2]} 6... a5 {[%clk 0:04:52.6]}
7. b5 {[%clk 0:04:47.7]} 7... c5 {[%clk 0:04:49]} 8. bxc6 {[%clk 0:04:43.9]}
8... bxc6 {[%clk 0:04:47.5]} 9. Nbd2 {[%clk 0:04:40.4]} 9... c5 {[%clk
0:04:43.4]} 10. dxc5 {[%clk 0:04:23.9]} 10... Qc7 {[%clk 0:04:31.3]} 11. Bb2
{[%clk 0:03:58]} 11... Qxc5 {[%clk 0:04:27.8]} 12. Nb3 {[%clk 0:03:56]} 12...
Qc7 {[%clk 0:04:21.3]} 13. Rb1 {[%clk 0:03:48.2]} 13... Nc6 {[%clk 0:04:13.7]}
14. Bxf6 {[%clk 0:03:44.5]} 14... Bxf6 {[%clk 0:04:09.6]} 15. Qxd5 {[%clk
0:03:42.9]} 15... Be6 {[%clk 0:04:05]} 16. Qd2 {[%clk 0:03:27.7]} 16... Rfd8
{[%clk 0:04:00.4]} 17. Qc1 {[%clk 0:03:21.5]} 17... Nb4 {[%clk 0:03:52.4]} 18.
Bd3 {[%clk 0:02:09.2]} 18... Nxa2 {[%clk 0:03:17.7]} 19. Qe1 {[%clk 0:01:31.5]}
19... Nc3 {[%clk 0:03:13.7]} 20. Rc1 {[%clk 0:01:18.3]} 20... a4 {[%clk
0:03:10.9]} 21. Nbd4 {[%clk 0:01:15]} 21... a3 {[%clk 0:03:06.9]} 22. Ra1 {[%clk
0:01:03.2]} 22... a2 {[%clk 0:02:49.7]} 23. Nxe6 {[%clk 0:00:48.6]} 23... fxe6
{[%clk 0:02:47.4]} 24. Nd4 {[%clk 0:00:47.5]} 24... Rdc8 {[%clk 0:02:13.1]} 25.
Nxe6 {[%clk 0:00:35.4]} 25... Qd6 {[%clk 0:01:50]} 26. Nd4 {[%clk 0:00:30.5]}
26... e5 {[%clk 0:01:42.1]} 27. Nb5 {[%clk 0:00:19]} 27... Nxb5 {[%clk
0:01:34.4]} 28. Bxb5 {[%clk 0:00:18.9]} 28... e4 {[%clk 0:01:32.1]} 29. Qe2
{[%clk 0:00:13.7]} 29... Bxa1 {[%clk 0:01:28.7]} 30. Bc4+ {[%clk 0:00:12.3]}
30... Kg7 {[%clk 0:01:26.2]} 31. Rxa1 {[%clk 0:00:11]} 31... Qe5 {[%clk
0:01:19.4]} 32. Qe1 {[%clk 0:00:09]} 32... Rxc4 {[%clk 0:01:15.5]} 0-1

[Event "Live Chess"]
[Site "Chess.com"]
[Date "2023.05.21"]
[Round "-"]
[White "Doge_Dandolo"]
[Black "ramses-IIG"]
[Result "1-0"]
[WhiteElo "1917"]
[BlackElo "870"]
[TimeControl "300"]
[EndTime "20:44:20 PDT"]
[Termination "Doge_Dandolo won by resignation"]

1. Nf3 {[%clk 0:04:59]} 1... d5 {[%clk 0:04:57.7]} 2. c4 {[%clk 0:04:57.9]} 2...
Bg4 {[%clk 0:04:57.4]} 3. Qb3 {[%clk 0:04:54]} 3... Bxf3 {[%clk 0:04:53.9]} 4.
gxf3 {[%clk 0:04:48.9]} 4... dxc4 {[%clk 0:04:53.8]} 5. Qxb7 {[%clk 0:04:47]}
5... Nd7 {[%clk 0:04:50.9]} 6. Na3 {[%clk 0:04:43.6]} 6... Ne5 {[%clk
0:04:49.4]} 7. Qe4 {[%clk 0:04:37.1]} 7... f6 {[%clk 0:04:44.5]} 8. f4 {[%clk
0:04:33.4]} 8... Ng4 {[%clk 0:04:41.5]} 9. Bh3 {[%clk 0:04:27.4]} 9... N4h6
{[%clk 0:04:32.8]} 10. Be6 {[%clk 0:04:16.5]} 10... Rb8 {[%clk 0:04:17]} 11.
Qc6+ {[%clk 0:04:08.2]} 1-0